bitfinex-derivatives/quotes_SOLF0:USTF0_20220109
["timestamp","ask_amount","ask_price","bid_price","bid_amount"]
[1641757427920,87.28122277,144.93,144.87,2.48932883]
[1641757428118,87.28122277,144.93,144.88,4.0]
[1641757428721,20.37202277,144.93,144.88,4.0]
[1641757429221,20.37202277,144.93,144.84,24.4819432]
[1641757429422,20.37202277,144.93,144.89,2.49380907]
[1641757429623,2.39738903,144.92,144.89,2.49380907]
[1641757430624,2.39738903,144.92,144.91,4.0]
[1641757430922,20.12134735,144.94,144.91,7.816]
[1641757431122,5.51972279,144.94,144.91,7.816]
[1641757431923,5.51972279,144.94,144.87,14.60162456]
[1641757432726,5.52082021,144.91,144.87,14.60162456]
[1641757432926,14.65782021,144.91,144.87,26.97585541]
[1641757433126,14.65782021,144.91,144.89,4.0]
[1641757433326,14.65782021,144.91,144.87,26.97585541]
[1641757433626,20.17883504,144.91,144.88,4.0]
[1641757434028,20.17883504,144.91,144.89,4.0]
[1641757434328,14.65801483,144.91,144.89,4.0]
[1641757434829,14.65801483,144.91,144.86,14.60162456]
[1641757435029,14.65801483,144.91,144.88,4.0]
[1641757435527,14.65801483,144.91,144.86,14.60162456]
[1641757435728,14.65801483,144.91,144.87,4.0]
[1641757435928,42.32280483,144.91,144.86,14.60162456]
[1641757436127,5.52169051,144.89,144.86,8.29462456]
[1641757436328,5.52169051,144.89,144.88,2.493932]
[1641757436527,6.6250867,144.91,144.88,2.493932]
[1641757437428,6.6250867,144.91,144.83,1.725]
[1641757437728,6.6250867,144.91,144.88,4.0]
[1641757437942,6.6250867,144.91,144.84,31.66479]
[1641757438229,6.6250867,144.91,144.89,4.0]
[1641757438429,6.6250867,144.91,144.9,3.91990285]
[1641757439830,6.6250867,144.91,144.9,7.91990285]
[1641757440030,33.18393842,144.95,144.9,16.32990285]
[1641757440232,33.18393842,144.95,144.9,12.32990285]
[1641757440430,33.18393842,144.95,144.93,4.0]
[1641757440633,33.18393842,144.95,144.9,12.32990285]
[1641757440832,2.39788092,144.94,144.93,4.0]
[1641757441532,2.39788092,144.94,144.9,3.91990285]
[1641757441935,2.39788092,144.94,144.91,4.0]
[1641757442333,2.39788092,144.94,144.91,2.49283403]
[1641757442534,2.39788092,144.95,144.93,4.0]
[1641757445136,2.39788092,144.95,144.9,12.16783348]
[1641757445438,27.66479,144.96,144.92,4.0]
[1641757446040,27.66479,144.96,144.9,11.34983348]
[1641757446240,27.66479,144.96,144.9,7.43]
[1641757446641,27.66479,144.96,144.92,4.0]
[1641757447043,2.39612007,144.95,144.92,4.0]
[1641757447642,102.90418019,144.98,144.88,9.151]
[1641757447643,38.32323012,145.0,144.94,4.0]
[1641757447845,38.32323012,145.0,144.94,6.269]
[1641757448143,38.32323012,145.0,144.98,4.0]
[1641757448346,38.32323012,145.0,144.96,4.0]
[1641757448544,34.28412033,145.03,144.97,4.0]
[1641757448746,5.51711198,145.01,144.97,4.0]
[1641757449344,5.51711198,145.01,144.93,27.66479]
[1641757449546,5.51711198,145.01,144.97,4.0]
[1641757450845,5.51711198,145.01,144.93,27.66479]
[1641757450846,5.51711198,145.01,144.98,4.0]
[1641757451846,5.51711198,145.01,144.95,6.89441208]
[1641757452049,27.66479,145.03,145.0,4.0]
[1641757452246,27.66479,145.03,144.96,4.0]
[1641757452447,33.18050954,145.05,145.02,4.0]
[1641757452647,33.18050954,145.05,144.97,1.723]
[1641757452847,33.18050954,145.05,145.02,4.0]
[1641757454048,33.18050954,145.05,145.01,4.0]
[1641757454651,33.18050954,145.05,144.98,3.91780955]
[1641757454849,33.18050954,145.05,145.01,4.0]
[1641757455749,33.18050954,145.05,144.98,3.91780955]
[1641757457354,33.18050954,145.05,144.97,31.66479]
[1641757458654,33.18050954,145.05,144.99,3.9168151]
[1641757459054,5.51571954,145.05,145.04,4.0]
[1641757459354,5.51571954,145.05,145.04,12.046]
[1641757463262,5.51571954,145.05,145.01,4.0]
[1641757463462,14.98871954,145.05,145.0,3.91669468]
[1641757463662,14.98871954,145.05,145.02,4.0]
[1641757464062,14.98871954,145.05,145.01,4.0]
[1641757464263,27.66479,145.04,145.01,4.0]
[1641757464464,27.66479,145.04,145.02,4.0]
[1641757464663,5.51640799,145.03,145.01,4.0]
[1641757465062,5.51640799,145.03,145.0,3.91669468]
[1641757465263,5.51712021,145.01,144.95,1.723]
[1641757465462,5.51822247,144.98,144.92,4.0]
[1641757465663,11.89122247,144.98,144.92,4.0]
[1641757465867,5.51887495,144.96,144.92,4.0]
[1641757466163,5.51887495,144.96,144.93,4.0]
[1641757466464,34.03779,144.98,144.93,4.0]
[1641757466664,34.03779,144.98,144.89,31.58240242]
[1641757466867,34.03779,144.98,144.9,4.0]
[1641757467265,34.03779,144.98,144.95,4.0]
[1641757467664,6.373,144.98,144.92,4.0]
[1641757467865,6.62153323,144.99,144.92,4.0]
[1641757468365,6.62153323,144.99,144.97,4.0]
[1641757471469,6.62153323,144.99,144.94,4.0]
[1641757471665,27.66479,145.01,144.96,4.0]
[1641757471866,33.18169059,145.01,144.96,4.0]
[1641757472066,33.18169059,145.01,144.93,3.91856879]
[1641757472469,33.18169059,145.01,144.97,4.0]
[1641757472668,33.18169059,145.01,144.94,5.724]
[1641757472867,33.18169059,145.01,144.99,4.0]
[1641757473067,33.18169059,145.01,144.97,7.385]
[1641757473268,67.1135,145.03,144.97,7.385]
[1641757473968,67.1135,145.03,144.99,4.0]
[1641757474168,33.18053338,145.04,144.99,4.0]
[1641757475171,33.18053338,145.04,144.95,31.66479]
[1641757475369,27.66479,145.04,144.96,4.0]
[1641757475571,27.66479,145.04,144.99,4.0]
[1641757476371,5.51612332,145.03,144.99,4.0]
[1641757479181,5.51612332,145.03,144.97,3.91811996]
[1641757479375,5.51612332,145.03,144.95,27.66479]
[1641757479977,5.51612332,145.03,144.99,4.0]
[1641757480276,5.51612332,145.03,144.95,27.66479]
[1641757480476,5.51612332,145.03,144.95,29.38879]
[1641757480675,5.51612332,145.03,145.0,4.0]
[1641757481075,5.51612332,145.03,144.99,4.0]
[1641757481276,5.51612332,145.03,144.98,4.0]
[1641757483076,5.51612332,145.03,144.98,7.91769386]
[1641757484781,5.51612332,145.03,144.98,3.91769386]
[1641757484981,5.51764888,144.99,144.93,1.724]
[1641757485181,5.51764888,144.99,144.92,14.57147984]
[1641757485182,12.46964888,144.99,144.92,14.57147984]
[1641757485583,12.46964888,144.99,144.93,4.0]
[1641757486784,27.66479,144.97,144.89,31.66479]
[1641757486985,27.66479,144.97,144.89,27.66479]
[1641757487888,27.66479,144.97,144.94,4.0]
[1641757488086,27.66479,144.97,144.94,9.119]
[1641757488685,27.66479,144.97,144.96,4.0]
[1641757489687,3.91882265,144.98,144.96,4.0]
[1641757490089,3.91882265,144.98,144.94,9.119]
[1641757490287,3.91882265,144.98,144.97,4.0]
[1641757490490,6.61986598,145.02,144.97,12.904]
[1641757490791,6.61986598,145.02,145.01,4.0]
[1641757490988,6.61986598,145.02,145.01,5.984]
[1641757491187,42.23626984,145.04,145.01,9.984]
[1641757491188,27.66479,145.04,145.01,9.984]
[1641757492789,27.66479,145.04,145.01,5.984]
[1641757492991,27.66479,145.04,145.03,4.0]
[1641757493190,27.66479,145.04,145.01,5.984]
[1641757493391,27.66479,145.04,144.97,8.904]
[1641757493992,27.66479,145.04,144.98,2.48601573]
[1641757494993,27.66479,145.04,145.01,3.91679378]
[1641757496595,5.51632814,145.03,144.95,4.0]
[1641757496797,33.18188327,145.01,144.95,4.0]
[1641757496995,33.18188327,145.01,144.94,14.57147984]
[1641757497195,33.18188327,145.01,144.97,4.0]
[1641757498198,5.51744248,145.0,144.97,4.0]
[1641757499196,27.66479,145.01,144.99,4.0]
[1641757499397,14.57147984,145.03,144.96,4.0]
[1641757499797,33.18078756,145.04,144.93,1.724]
[1641757499798,47.7522674,145.04,145.0,4.0]
[1641757499998,47.7522674,145.04,145.02,4.0]
[1641757500199,47.7522674,145.04,144.98,4.0]
[1641757500599,2.39157204,145.03,145.02,4.0]
[1641757501202,27.66479,145.04,145.02,4.0]
[1641757501401,6.61818606,145.06,145.02,4.0]
[1641757501601,6.61818606,145.06,145.04,4.0]
[1641757502305,7.94031222,145.09,145.05,4.0]
[1641757502502,14.57147984,145.1,145.08,4.0]
[1641757502703,14.57147984,145.1,145.09,8.0]
[1641757502903,38.32323012,145.13,145.09,8.0]
[1641757502904,38.32323012,145.13,145.09,35.66479]
[1641757503104,38.32323012,145.13,145.12,4.0]
[1641757503306,27.66479,145.18,145.12,12.077]
[1641757503502,27.66479,145.18,145.17,4.0]
[1641757503703,27.66479,145.2,145.17,11.439]
[1641757504303,27.66479,145.2,145.18,4.0]
[1641757504503,27.66479,145.2,145.19,4.0]
[1641757505104,38.32323012,145.25,145.19,4.0]
[1641757505304,38.32323012,145.25,145.18,5.721]
[1641757505504,38.32323012,145.25,145.24,4.0]
[1641757505704,70.39035234,145.27,145.24,4.0]
[1641757505705,63.5033,145.27,145.24,4.0]
[1641757505906,38.32323012,145.28,145.26,4.0]
[1641757506304,38.32323012,145.28,145.22,5.914]
[1641757506504,38.32323012,145.28,145.27,4.0]
[1641757506706,2.37508496,145.29,145.27,4.0]
[1641757506907,2.37508496,145.29,145.22,11.634]
[1641757507105,2.37508496,145.29,145.22,9.914]
[1641757507504,77.405402,145.3,145.28,8.0]
[1641757507505,38.32323012,145.3,145.28,8.0]
[1641757507705,27.66479,145.32,145.28,5.811]
[1641757507905,27.66479,145.32,145.21,1.72]
[1641757508105,27.66479,145.32,145.23,4.0]
[1641757508306,27.66479,145.32,145.26,4.0]
[1641757508606,27.66479,145.32,145.21,1.72]
[1641757508805,27.66479,145.32,145.28,4.0]
[1641757509306,27.66479,145.32,145.26,4.0]
[1641757509707,27.66479,145.32,145.24,27.66479]
[1641757509908,27.66479,145.32,145.27,4.0]
[1641757510507,27.66479,145.32,145.26,4.0]
[1641757510708,42.31291019,145.32,145.21,5.72]
[1641757510907,27.66479,145.28,145.21,4.0]
[1641757511410,27.66479,145.28,145.23,3.17351519]
[1641757511609,27.66479,145.28,145.23,7.17351519]
[1641757512209,27.66479,145.28,145.25,4.0]
[1641757512409,27.66479,145.28,145.23,3.17351519]
[1641757513109,27.66479,145.28,145.25,4.0]
[1641757513612,27.66479,145.28,145.23,3.17351519]
[1641757513809,5.50625122,145.29,145.23,3.17351519]
[1641757514110,5.50625122,145.29,145.25,4.0]
[1641757514311,5.50625122,145.29,145.23,16.31551519]
[1641757514510,5.50611256,145.3,145.23,16.31551519]
[1641757514710,5.50611256,145.3,145.23,12.31551519]
[1641757514910,27.66479,145.24,145.18,1.72]
[1641757515110,5.50916752,145.22,145.15,4.0]
[1641757515311,5.50916752,145.22,145.12,31.66479]
[1641757515712,5.50916752,145.22,145.18,4.0]
[1641757515911,5.50916752,145.22,145.13,1.722]
[1641757516113,27.66479,145.24,145.2,4.0]
[1641757516312,27.66479,145.24,145.22,4.0]
[1641757516513,27.66479,145.25,145.23,4.0]
[1641757516712,27.66479,145.25,145.22,4.0]
[1641757516914,27.66479,145.25,145.15,27.66479]
[1641757517113,33.17271406,145.25,145.18,4.0]
[1641757517715,33.17271406,145.25,145.17,4.0]
[1641757518016,33.17271406,145.25,145.14,4.0]
[1641757518217,5.50879667,145.23,145.17,4.0]
[1641757518918,27.66479,145.25,145.15,4.0]
[1641757519118,27.66479,145.25,145.19,4.0]
[1641757519317,27.66479,145.25,145.18,7.979]
[1641757519817,27.66479,145.25,145.21,4.0]
[1641757522620,27.66479,145.25,145.17,29.38579]
[1641757522821,27.66479,145.25,145.2,4.0]
[1641757523021,27.66479,145.25,145.19,6.355]
[1641757523421,3.3359114,145.24,145.19,6.355]
[1641757523827,3.3359114,145.24,145.21,4.0]
[1641757524223,7.24790385,145.24,145.19,6.355]
[1641757524422,7.24790385,145.24,145.2,4.0]
[1641757525225,7.24790385,145.24,145.18,6.88349682]
[1641757525922,7.24790385,145.24,145.23,4.0]
[1641757527124,12.75514612,145.24,145.23,4.0]
[1641757527325,4.612e-05,145.24,145.23,4.0]
[1641757528329,5.025e-05,145.26,145.23,4.0]
[1641757528526,5.025e-05,145.26,145.25,4.0]
[1641757529528,5.025e-05,145.26,145.25,5.721]
[1641757530332,5.025e-05,145.26,145.25,9.721]
[1641757530530,5.025e-05,145.26,145.25,8.0]
[1641757531332,5.025e-05,145.26,145.25,9.721]
[1641757532034,1.9557094,145.27,145.25,9.721]
[1641757532233,9.4e-06,145.27,145.26,9.721]
[1641757532435,9.4e-06,145.27,145.26,4.0]
[1641757533034,9.4e-06,145.27,145.19,6.3065368]
[1641757533236,27.66479,145.25,145.19,2.3065368]
[1641757533435,7.6720094,145.27,145.19,2.3065368]
[1641757533436,9.4e-06,145.27,145.2,14.58068385]
[1641757533635,9.4e-06,145.27,145.25,3.91080027]
[1641757533837,9.4e-06,145.27,145.26,4.0]
[1641757534035,9.4e-06,145.27,145.25,7.91080027]
[1641757534237,8.4090094,145.27,145.25,3.91080027]
[1641757535136,27.66479,145.26,145.25,3.91080027]
[1641757535736,27.66479,145.26,145.25,0.00010027]
[1641757535938,27.66479,145.26,145.19,4.0]
[1641757536337,30.05050397,145.26,145.24,4.0]
[1641757537039,27.66479,145.26,145.24,4.0]
[1641757537440,27.66479,145.26,145.25,4.0]
[1641757538841,30.05027373,145.26,145.19,3.442]
[1641757539042,30.05027373,145.26,145.21,4.0]
[1641757539242,30.05027373,145.26,145.19,5.721]
[1641757539445,30.05027373,145.26,145.21,4.0]
[1641757539646,2.38548373,145.25,145.23,4.0]
[1641757539844,2.38548373,145.25,145.19,4.0]
[1641757540046,2.38548373,145.25,145.24,4.0]
[1641757541245,27.66479,145.26,145.24,4.0]
[1641757541446,27.66479,145.26,145.25,4.0]
[1641757542047,27.66479,145.26,145.19,15.963]
[1641757542246,27.66479,145.26,145.24,4.0]
[1641757542446,2.38607221,145.26,145.22,4.0]
[1641757543048,2.38607221,145.26,145.23,4.0]
[1641757543448,44.63154606,145.29,145.23,4.0]
[1641757543647,44.63154606,145.29,145.22,3.91163213]
[1641757544247,2.38607221,145.28,145.25,4.0]
[1641757544446,2.38607221,145.28,145.26,4.0]
[1641757544847,2.38607221,145.28,145.27,4.0]
[1641757545048,16.96675606,145.28,145.27,4.0]
[1641757545246,14.58075606,145.28,145.27,8.0]
[1641757545447,9.80875606,145.28,145.27,5.72]
[1641757545848,27.66479,145.31,145.27,5.72]
[1641757546051,5.50599209,145.3,145.27,1.72]
[1641757546249,5.50599209,145.3,145.29,4.0]
[1641757546451,65.98802012,145.35,145.29,16.813]
[1641757546651,65.98802012,145.35,145.31,4.0]
[1641757546849,27.66479,145.35,145.29,8.813]
[1641757547049,27.66479,145.35,145.34,4.0]
[1641757547251,27.66479,145.35,145.34,11.119]
[1641757547749,27.66479,145.35,145.34,7.119]
[1641757547951,27.66479,145.35,145.28,27.66479]
[1641757548149,34.05479,145.35,145.3,4.0]
[1641757549150,27.66479,145.35,145.3,4.0]
[1641757550751,27.66479,145.35,145.3,11.299]
[1641757552551,27.66479,145.35,145.3,4.0]
[1641757553151,9.59901001,145.34,145.3,4.0]
[1641757553351,9.59901001,145.34,145.31,4.0]
[1641757553551,9.59901001,145.34,145.3,4.0]
[1641757553752,27.66479,145.35,145.3,4.0]
[1641757553952,27.66479,145.35,145.31,4.0]
[1641757554652,27.66479,145.35,145.29,7.846]
[1641757554852,27.66479,145.35,145.31,4.0]
[1641757555054,27.66479,145.35,145.33,4.0]
[1641757555253,27.66479,145.35,145.33,12.08]
[1641757556054,27.66479,145.35,145.33,8.08]
[1641757556253,27.66479,145.35,145.29,4.0]
[1641757556453,5.50456228,145.34,145.29,4.0]
[1641757556854,5.50456228,145.34,145.24,7.44]
[1641757557055,5.50456228,145.34,145.31,4.0]
[1641757557254,5.50456228,145.34,145.29,4.0]
[1641757557455,5.5049781,145.33,145.28,4.0]
[1641757557657,27.66479,145.3,145.24,1.72]
[1641757557855,35.32279,145.3,145.23,3.44]
[1641757558355,35.32279,145.3,145.24,4.0]
[1641757558555,35.32279,145.3,145.21,1.72]
[1641757558556,35.32279,145.3,145.26,4.0]
[1641757559456,35.32279,145.3,145.21,3.44]
[1641757559657,27.66479,145.27,145.21,3.44]
[1641757560660,27.66479,145.27,145.24,4.0]
[1641757561264,27.66479,145.27,145.21,3.44]
[1641757561462,27.66479,145.27,145.17,95.95439]
[1641757561463,36.42879,145.27,145.16,3.442]
[1641757561762,27.66479,145.21,145.17,4.0]
[1641757561966,33.38879,145.21,145.17,4.0]
[1641757562165,33.38879,145.21,145.2,4.0]
[1641757562764,33.38879,145.21,145.15,3.442]
[1641757562964,5.724,145.21,145.2,4.0]
[1641757563164,68.4578,145.26,145.2,9.964]
[1641757563364,33.17189399,145.27,145.2,9.964]
[1641757563564,27.66479,145.27,145.26,4.0]
[1641757563765,27.66479,145.27,145.26,4.9701]
[1641757563965,27.66479,145.27,145.22,4.0]
[1641757564165,27.66479,145.27,145.2,1.72]
[1641757564364,27.66479,145.27,145.23,4.0]
[1641757564563,27.66479,145.27,145.22,4.0]
[1641757566366,27.66479,145.27,145.2,4.0]
[1641757566769,27.66479,145.27,145.17,1.721]
[1641757566967,27.66479,145.27,145.17,4.0]
[1641757567167,1.18640731,145.21,145.17,4.0]
[1641757567367,1.18640731,145.21,145.2,4.0]
[1641757568970,27.66479,145.27,145.2,8.0]
[1641757569170,27.66479,145.27,145.21,5.721]
[1641757569671,27.66479,145.27,145.21,4.0]
[1641757569871,27.66479,145.27,145.26,4.0]
[1641757570073,27.66479,145.27,145.26,10.126]
[1641757570472,27.66479,145.31,145.26,10.126]
[1641757570674,27.66479,145.31,145.28,4.0]
[1641757570873,27.66479,145.31,145.26,6.126]
[1641757571472,27.66479,145.31,145.27,4.0]
[1641757571675,27.66479,145.31,145.24,1.72]
[1641757571874,27.66479,145.31,145.28,4.0]
[1641757572074,27.66479,145.31,145.24,4.0]
[1641757572276,27.66479,145.31,145.25,1.72]
[1641757572474,27.66479,145.31,145.29,4.0]
[1641757572676,27.66479,145.31,145.27,4.0]
[1641757572875,27.66479,145.31,145.25,1.72]
[1641757573077,27.66479,145.31,145.26,4.0]
[1641757574478,27.66479,145.31,145.23,4.0]
[1641757574678,27.66479,145.31,145.28,4.0]
[1641757575679,42.25810267,145.31,145.21,3.44]
[1641757575879,42.25810267,145.31,145.28,4.0]
[1641757576379,27.66479,145.31,145.28,4.0]
[1641757576579,27.66479,145.31,145.3,4.0]
[1641757576980,27.66479,145.31,145.25,1.72]
[1641757577179,27.66479,145.31,145.25,3.44]
[1641757577579,27.66479,145.31,145.28,4.0]
[1641757578582,27.66479,145.31,145.25,1.72]
[1641757578781,27.66479,145.31,145.29,4.0]
[1641757579683,27.66479,145.31,145.27,7.014]
[1641757580385,27.66479,145.31,145.28,4.0]
[1641757581191,42.25810267,145.31,145.28,4.0]
[1641757581687,42.25810267,145.31,145.24,3.91063907]
[1641757581888,27.66479,145.3,145.26,4.0]
[1641757582087,27.66479,145.3,145.22,31.66479]
[1641757582287,27.66479,145.3,145.28,4.0]
[1641757582887,27.66479,145.3,145.29,4.0]
[1641757583087,27.66479,145.3,145.26,3.91031227]
[1641757583989,33.17074272,145.3,145.26,7.91031227]
[1641757585891,2.38479847,145.29,145.26,4.0]
[1641757586192,2.38479847,145.29,145.24,4.0]
[1641757586392,3.2149075,145.29,145.22,4.0]
[1641757586591,11.1979075,145.29,145.24,4.0]
[1641757586791,11.1979075,145.29,145.23,1.721]
[1641757586992,5.50715915,145.27,145.2,20.31331267]
[1641757587291,5.50827072,145.24,145.18,16.31431267]
[1641757587491,11.32027072,145.24,145.19,4.0]
[1641757587693,11.32027072,145.24,145.18,14.59331267]
[1641757587892,27.66479,145.21,145.18,18.59331267]
[1641757588291,27.66479,145.21,145.18,4.0]
[1641757588693,27.66479,145.21,145.16,31.66479]
[1641757588896,42.17838186,145.21,145.16,31.66479]
[1641757589994,36.66879,145.21,145.18,4.0]
[1641757590196,36.66879,145.21,145.14,5.721]
[1641757590395,36.66879,145.21,145.19,4.0]
[1641757591000,36.66879,145.21,145.13,31.9011381]
[1641757591398,36.66879,145.21,145.13,27.9011381]
[1641757591597,36.66879,145.21,145.13,30.1791381]
[1641757591800,27.66479,145.16,145.14,2.48207306]
[1641757591999,8.958,145.16,145.14,2.48207306]
[1641757592598,8.958,145.16,145.13,24.4581381]
[1641757592800,8.958,145.16,145.1,14.59331267]
[1641757592998,8.958,145.16,145.11,4.0]
[1641757593399,14.46935687,145.16,145.11,4.0]
[1641757593599,14.46935687,145.16,145.1,14.59331267]
[1641757593801,8.958,145.16,145.12,2.48286146]
[1641757594004,8.958,145.16,145.13,4.0]
[1641757594402,27.66479,145.17,145.13,4.0]
[1641757595803,27.66479,145.17,145.09,14.59331267]
[1641757596003,27.66479,145.17,145.13,4.0]
[1641757596202,27.66479,145.17,145.16,4.0]
[1641757597103,27.66479,145.17,145.1,1.722]
[1641757597302,27.66479,145.17,145.13,4.0]
[1641757597902,55.32958,145.17,145.15,4.0]
[1641757598103,55.32958,145.17,145.1,1.722]
[1641757598304,55.32958,145.17,145.11,4.0]
[1641757598604,6.34287974,145.16,145.11,4.0]
[1641757599004,6.34287974,145.16,145.07,23.20378825]
[1641757599204,6.34287974,145.16,145.13,4.0]
[1641757599603,6.34287974,145.16,145.07,21.48178825]
[1641757599804,6.34287974,145.16,145.07,6.88847558]
[1641757600003,27.66479,145.11,145.1,4.0]
[1641757602005,6.34287974,145.16,145.1,4.0]
[1641757602206,6.34316396,145.16,145.1,4.0]
[1641757602407,0.83194018,145.16,145.1,5.722]
[1641757602808,0.83194018,145.16,145.11,2.47344532]
[1641757603009,0.83194018,145.16,145.15,4.0]
[1641757603208,0.83194018,145.16,145.15,11.242]
[1641757604011,27.66479,145.23,145.15,11.242]
[1641757604212,27.66479,145.23,145.2,4.0]
[1641757604415,27.66479,145.23,145.2,8.599]
[1641757604612,27.66479,145.23,145.2,12.599]
[1641757604811,27.66479,145.23,145.2,8.599]
[1641757605011,27.66479,145.23,145.2,12.599]
[1641757607216,27.66479,145.23,145.22,4.0]
[1641757607720,27.66479,145.23,145.14,73.6123]
[1641757607919,36.94079,145.23,145.22,4.0]
[1641757608322,9.276,145.23,145.22,4.0]
[1641757609317,86.76874521,145.3,145.22,4.0]
[1641757609521,6.60703254,145.3,145.27,4.0]
[1641757609719,6.60703254,145.3,145.26,4.0]
[1641757610018,27.66479,145.29,145.26,4.0]
[1641757610218,27.66479,145.29,145.22,3.44]
[1641757610419,27.66479,145.29,145.25,4.0]
[1641757610820,27.66479,145.29,145.22,4.0]
[1641757611219,5.50768408,145.26,145.21,1.72]
[1641757611421,12.34768408,145.26,145.21,1.72]
[1641757611821,12.34768408,145.26,145.19,4.0]
[1641757612021,27.66479,145.22,145.16,65.9078]
[1641757612219,33.56779,145.22,145.16,65.9078]
[1641757612821,33.56779,145.22,145.15,33.29736311]
[1641757613021,33.56779,145.22,145.15,38.46104469]
[1641757613521,33.56779,145.22,145.16,2.47885215]
[1641757613723,33.56779,145.22,145.16,6.47885215]
[1641757614021,39.07685175,145.22,145.16,6.47885215]
[1641757614421,39.07685175,145.22,145.16,4.0]
[1641757615625,39.07685175,145.22,145.12,16.31431267]
[1641757615825,39.07685175,145.22,145.12,24.45715038]
[1641757616023,39.07685175,145.22,145.2,3.91199947]
[1641757616626,39.07685175,145.22,145.12,24.45715038]
[1641757617228,39.07685175,145.22,145.12,2.48241791]
[1641757617525,39.07685175,145.22,145.14,4.0]
[1641757617725,5.51003621,145.19,145.14,4.0]
[1641757617927,13.38403621,145.19,145.14,4.0]
[1641757618125,27.66479,145.17,145.11,21.47989073]
[1641757618326,27.66479,145.17,145.15,4.0]
[1641757619627,27.66479,145.17,145.11,14.59331267]
[1641757620230,5.70899,145.17,145.16,4.0]
[1641757620428,14.59331267,145.23,145.16,9.722]
[1641757620627,14.59331267,145.23,145.22,4.0]
[1641757620830,14.59331267,145.23,145.19,4.0]
[1641757621031,14.59331267,145.23,145.17,1.721]
[1641757621227,14.59331267,145.23,145.18,4.0]
[1641757621429,5.50848554,145.24,145.18,4.0]
[1641757621628,5.50848554,145.24,145.19,4.0]
[1641757621829,67.6647,145.27,145.21,4.0]
[1641757622029,14.59331267,145.26,145.21,4.0]
[1641757622831,2.38332711,145.27,145.24,4.0]
[1641757623331,2.38332711,145.27,145.2,7.442]
[1641757623732,48.86539361,145.3,145.21,4.0]
[1641757623932,48.86539361,145.3,145.26,4.0]
[1641757624132,48.86539361,145.3,145.25,4.0]
[1641757624332,48.86539361,145.3,145.22,1.72]
[1641757624533,48.86539361,145.3,145.21,5.72]
[1641757624534,2.38285835,145.29,145.21,5.72]
[1641757624734,2.38285835,145.29,145.21,4.0]
[1641757624935,2.38285835,145.29,145.2,1.721]
[1641757625140,2.38285835,145.29,145.23,4.0]
[1641757625337,2.38285835,145.29,145.19,67.84565745]
[1641757625537,2.38285835,145.29,145.19,66.12465745]
[1641757625936,5.5071166,145.27,145.21,4.0]
[1641757626137,5.5071166,145.27,145.2,2.47892445]
[1641757626638,5.5071166,145.27,145.22,4.0]
[1641757628538,5.5071166,145.27,145.21,11.773]
[1641757628739,5.5071166,145.27,145.19,38.45986745]
[1641757628943,5.5071166,145.27,145.19,34.54781302]
[1641757629240,5.5071166,145.27,145.2,4.0]
[1641757629439,5.50842057,145.24,145.16,18.03531267]
[1641757629639,5.50842057,145.24,145.2,6.39026178]
[1641757629840,5.5096124,145.21,145.2,6.39026178]
[1641757630042,5.5096124,145.21,145.2,6.178e-05]
[1641757630244,33.1744024,145.21,145.2,6.178e-05]
[1641757630440,5.5096124,145.21,145.18,4.0]
[1641757630641,26.9894286,145.25,145.19,4.0]
[1641757631141,26.9894286,145.25,145.2,4.0]
[1641757631344,26.9894286,145.25,145.19,4.0]
[1641757631542,5.50811483,145.25,145.15,10.878]
[1641757632142,5.50811483,145.25,145.15,38.54279]